[Event "Live Chess"]
[Site "Chess.com"]
[Date "2023.05.20"]
[Round "-"]
[White "BearFromUkraine"]
[Black "Inglaterra"]
[Result "0-1"]
[WhiteElo "1166"]
[BlackElo "2083"]
[TimeControl "300"]
[EndTime "9:55:57 PDT"]
[Termination "Inglaterra won by resignation"]

1. e4 {[%clk 0:04:54.1]} 1... e5 {[%clk 0:04:58.7]} 2. Nf3 {[%clk 0:04:52.2]}
2... Nc6 {[%clk 0:04:56.9]} 3. Bc4 {[%clk 0:04:51.3]} 3... Nf6 {[%clk
0:04:55.2]} 4. d3 {[%clk 0:04:45.7]} 4... Bc5 {[%clk 0:04:51.2]} 5. O-O {[%clk
0:04:42.5]} 5... d6 {[%clk 0:04:50.1]} 6. Bg5 {[%clk 0:04:40.3]} 6... h6 {[%clk
0:04:48.2]} 7. Bh4 {[%clk 0:04:39.3]} 7... Bg4 {[%clk 0:04:44.2]} 8. Nc3 {[%clk
0:04:37.8]} 8... Nd4 {[%clk 0:04:41]} 9. Nd5 {[%clk 0:04:32.4]} 9... g5 {[%clk
0:04:37.2]} 10. Nxf6+ {[%clk 0:04:29.5]} 10... Qxf6 {[%clk 0:04:35.3]} 11. Bg3
{[%clk 0:04:26.6]} 11... h5 {[%clk 0:04:29.5]} 12. c3 {[%clk 0:04:24.2]} 12...
Nxf3+ {[%clk 0:04:26.7]} 13. gxf3 {[%clk 0:04:23.4]} 13... Bxf3 {[%clk
0:04:25.7]} 0-1

[Event "Live Chess"]
[Site "Chess.com"]
[Date "2023.05.20"]
[Round "-"]
[White "Chesscoach_Golichenko"]
[Black "vovanada"]
[Result "1-0"]
[WhiteElo "2646"]
[BlackElo "806"]
[TimeControl "300"]
[EndTime "9:55:58 PDT"]
[Termination "Chesscoach_Golichenko won by checkmate"]

1. d4 {[%clk 0:04:57.9]} 1... d5 {[%clk 0:04:56.5]} 2. Nc3 {[%clk 0:04:56.2]}
2... Nf6 {[%clk 0:04:50]} 3. Bf4 {[%clk 0:04:54.1]} 3... e6 {[%clk 0:04:42.9]}
4. e3 {[%clk 0:04:51.9]} 4... Bb4 {[%clk 0:04:38.8]} 5. Bd3 {[%clk 0:04:48.6]}
5... Bxc3+ {[%clk 0:04:34.8]} 6. bxc3 {[%clk 0:04:47.2]} 6... O-O {[%clk
0:04:30.8]} 7. g4 {[%clk 0:04:46.4]} 7... h6 {[%clk 0:04:13.5]} 8. h4 {[%clk
0:04:42.4]} 8... Qe7 {[%clk 0:03:49.5]} 9. g5 {[%clk 0:04:40]} 9... Ne4 {[%clk
0:03:40.1]} 10. gxh6 {[%clk 0:04:35.2]} 10... gxh6 {[%clk 0:03:32.7]} 11. Qg4+
{[%clk 0:04:33.5]} 11... Kh7 {[%clk 0:03:28.2]} 12. f3 {[%clk 0:04:32.2]} 12...
Rg8 {[%clk 0:03:21.2]} 13. Qh5 {[%clk 0:04:26.2]} 13... f5 {[%clk 0:03:04.3]}
14. Qxh6# {[%clk 0:04:19.4]} 1-0

[Event "Live Chess"]
[Site "Chess.com"]
[Date "2023.05.20"]
[Round "-"]
[White "LL220284LL"]
[Black "Hussamalhaidar"]
[Result "1-0"]
[WhiteElo "2405"]
[BlackElo "970"]
[TimeControl "300"]
[EndTime "9:56:02 PDT"]
[Termination "LL220284LL won by checkmate"]

1. b3 {[%clk 0:04:59.2]} 1... b6 {[%clk 0:04:56.5]} 2. Bb2 {[%clk 0:04:59.1]}
2... Bb7 {[%clk 0:04:55]} 3. Nf3 {[%clk 0:04:59]} 3... Nf6 {[%clk 0:04:51.9]} 4.
e3 {[%clk 0:04:58.4]} 4... e6 {[%clk 0:04:47.5]} 5. Be2 {[%clk 0:04:57.6]} 5...
d5 {[%clk 0:04:40.8]} 6. c4 {[%clk 0:04:55.8]} 6... Nbd7 {[%clk 0:04:34.6]} 7.
O-O {[%clk 0:04:53.8]} 7... Bd6 {[%clk 0:04:26.4]} 8. Nc3 {[%clk 0:04:51.8]}
8... O-O {[%clk 0:04:21.6]} 9. d4 {[%clk 0:04:50.3]} 9... c5 {[%clk 0:04:14.7]}
10. cxd5 {[%clk 0:04:49.1]} 10... exd5 {[%clk 0:04:03.7]} 11. Rc1 {[%clk
0:04:48]} 11... cxd4 {[%clk 0:03:59.5]} 12. Nxd4 {[%clk 0:04:45.8]} 12... Rc8
{[%clk 0:03:54.8]} 13. h3 {[%clk 0:04:33.5]} 13... Re8 {[%clk 0:03:53.1]} 14.
Bf3 {[%clk 0:04:30.3]} 14... Ne4 {[%clk 0:03:45.8]} 15. Bg4 {[%clk 0:04:24.1]}
15... g6 {[%clk 0:03:30.4]} 16. Ncb5 {[%clk 0:04:16.4]} 16... Rxc1 {[%clk
0:03:24.1]} 17. Qxc1 {[%clk 0:04:14.7]} 17... Bb8 {[%clk 0:03:18.1]} 18. Nc6
{[%clk 0:04:12]} 18... Bxc6 {[%clk 0:02:59.5]} 19. Qxc6 {[%clk 0:04:11.9]} 19...
a6 {[%clk 0:02:49.4]} 20. Nc3 {[%clk 0:03:44.8]} 20... Nxc3 {[%clk 0:02:40.5]}
21. Bxd7 {[%clk 0:03:36.1]} 21... Re7 {[%clk 0:02:35.2]} 22. Bg4 {[%clk
0:03:29.8]} 22... Qc7 {[%clk 0:02:26]} 23. Qxc7 {[%clk 0:03:21.7]} 23... Rxc7
{[%clk 0:02:22.2]} 24. Bf3 {[%clk 0:03:11.9]} 24... Ne4 {[%clk 0:02:12.9]} 25.
Be5 {[%clk 0:02:59.9]} 25... Rc8 {[%clk 0:02:04.5]} 26. Bxb8 {[%clk 0:02:57.2]}
26... Rxb8 {[%clk 0:02:02.8]} 27. Rd1 {[%clk 0:02:56.5]} 27... Nc3 {[%clk
0:01:54.1]} 28. Rd2 {[%clk 0:02:52.9]} 28... Rc8 {[%clk 0:01:50.6]} 29. Rc2
{[%clk 0:02:49.9]} 29... b5 {[%clk 0:01:45]} 30. Bxd5 {[%clk 0:02:46.6]} 30...
Rd8 {[%clk 0:01:33.9]} 31. Bf3 {[%clk 0:02:38.3]} 31... b4 {[%clk 0:01:28.7]}
32. a3 {[%clk 0:02:36.1]} 32... a5 {[%clk 0:01:25.3]} 33. axb4 {[%clk 0:02:35]}
33... axb4 {[%clk 0:01:21.4]} 34. g3 {[%clk 0:02:34.6]} 34... Nd1 {[%clk
0:01:13.6]} 35. Kg2 {[%clk 0:02:30.8]} 35... Nc3 {[%clk 0:01:07.8]} 36. Bc6
{[%clk 0:02:29.8]} 36... Rd6 {[%clk 0:01:02.7]} 37. Bb7 {[%clk 0:02:25.2]} 37...
g5 {[%clk 0:01:00.1]} 38. e4 {[%clk 0:02:22.3]} 38... f6 {[%clk 0:00:57.7]} 39.
Kf3 {[%clk 0:02:15.6]} 39... h6 {[%clk 0:00:51.2]} 40. Kg4 {[%clk 0:02:13.3]}
40... Nxe4 {[%clk 0:00:43.4]} 41. Bxe4 {[%clk 0:02:10.4]} 41... Rd4 {[%clk
0:00:38.7]} 42. Kf5 {[%clk 0:02:09.2]} 42... Kg7 {[%clk 0:00:35.8]} 43. Rc7+
{[%clk 0:02:08]} 43... Kf8 {[%clk 0:00:30.6]} 44. f3 {[%clk 0:02:06.3]} 44... h5
{[%clk 0:00:25.9]} 45. Kxf6 {[%clk 0:02:05]} 45... g4 {[%clk 0:00:23.2]} 46.
Rc8+ {[%clk 0:02:03.7]} 46... Rd8 {[%clk 0:00:20.1]} 47. Rxd8# {[%clk
0:02:03.6]} 1-0

[Event "Live Chess"]
[Site "Chess.com"]
[Date "2023.05.20"]
[Round "-"]
[White "MartinWalker4"]
[Black "OSmith06"]
[Result "1-0"]
[WhiteElo "2073"]
[BlackElo "1723"]
[TimeControl "300"]
[EndTime "9:56:02 PDT"]
[Termination "MartinWalker4 won by resignation"]

1. e4 {[%clk 0:04:56.6]} 1... c6 {[%clk 0:04:58.7]} 2. d4 {[%clk 0:04:54.8]}
2... d5 {[%clk 0:04:58.6]} 3. exd5 {[%clk 0:04:53.5]} 3... cxd5 {[%clk
0:04:58.5]} 4. c4 {[%clk 0:04:52.3]} 4... dxc4 {[%clk 0:04:57.5]} 5. Bxc4 {[%clk
0:04:49.7]} 5... e6 {[%clk 0:04:57.4]} 6. Nc3 {[%clk 0:04:47.6]} 6... Nf6 {[%clk
0:04:56.4]} 7. Nf3 {[%clk 0:04:45.8]} 7... Nc6 {[%clk 0:04:55.6]} 8. O-O {[%clk
0:04:43.9]} 8... Bb4 {[%clk 0:04:52.7]} 9. a3 {[%clk 0:04:40.4]} 9... Bxc3
{[%clk 0:04:51.2]} 10. bxc3 {[%clk 0:04:38.1]} 10... O-O {[%clk 0:04:51.1]} 11.
Bg5 {[%clk 0:04:36.1]} 11... h6 {[%clk 0:04:49.4]} 12. Bh4 {[%clk 0:04:34.3]}
12... a6 {[%clk 0:04:35.9]} 13. Qd2 {[%clk 0:04:15.5]} 13... b5 {[%clk
0:04:34.1]} 14. Be2 {[%clk 0:04:14.2]} 14... Bb7 {[%clk 0:04:30.8]} 15. Qf4
{[%clk 0:04:13]} 15... Nd5 {[%clk 0:04:22.5]} 16. Qg3 {[%clk 0:04:10.7]} 16...
g5 {[%clk 0:04:16.4]} 17. Nxg5 {[%clk 0:04:08.4]} 17... hxg5 {[%clk 0:04:16.3]}
18. Bxg5 {[%clk 0:04:07.2]} 18... Qc7 {[%clk 0:04:09.1]} 19. Bf4+ {[%clk
0:04:05.7]} 19... Kh7 {[%clk 0:04:05.8]} 20. Bxc7 {[%clk 0:04:04.5]} 20... Nxc7
{[%clk 0:04:03.4]} 21. Qxc7 {[%clk 0:04:02.3]} 1-0

[Event "Live Chess"]
[Site "Chess.com"]
[Date "2023.05.20"]
[Round "-"]
[White "McSlash1"]
[Black "gmnorfolk"]
[Result "0-1"]
[WhiteElo "2071"]
[BlackElo "2207"]
[TimeControl "300"]
[EndTime "9:56:04 PDT"]
[Termination "gmnorfolk won by checkmate"]

1. e4 {[%clk 0:04:59.3]} 1... e5 {[%clk 0:04:58.5]} 2. Nf3 {[%clk 0:04:58.2]}
2... Nc6 {[%clk 0:04:58.1]} 3. Bb5 {[%clk 0:04:57.4]} 3... a6 {[%clk 0:04:57.5]}
4. Ba4 {[%clk 0:04:55.8]} 4... Nf6 {[%clk 0:04:57]} 5. O-O {[%clk 0:04:54.9]}
5... Be7 {[%clk 0:04:56.4]} 6. Re1 {[%clk 0:04:54.4]} 6... b5 {[%clk 0:04:55.9]}
7. Bb3 {[%clk 0:04:53.9]} 7... O-O {[%clk 0:04:55.4]} 8. d3 {[%clk 0:04:53.1]}
8... d6 {[%clk 0:04:49.6]} 9. h3 {[%clk 0:04:50.7]} 9... Bb7 {[%clk 0:04:48.1]}
10. c3 {[%clk 0:04:50.1]} 10... Na5 {[%clk 0:04:47.1]} 11. Bc2 {[%clk
0:04:48.4]} 11... c5 {[%clk 0:04:47]} 12. Nbd2 {[%clk 0:04:47]} 12... h6 {[%clk
0:04:41.4]} 13. Nf1 {[%clk 0:04:46.4]} 13... Re8 {[%clk 0:04:38.3]} 14. Ng3
{[%clk 0:04:45.6]} 14... Bf8 {[%clk 0:04:37.5]} 15. Nf5 {[%clk 0:04:44.6]} 15...
Nc6 {[%clk 0:04:33.4]} 16. Nh2 {[%clk 0:04:38.3]} 16... d5 {[%clk 0:04:32.5]}
17. exd5 {[%clk 0:04:31.5]} 17... Qxd5 {[%clk 0:04:29.3]} 18. Bb3 {[%clk
0:04:25]} 18... Qd7 {[%clk 0:04:22.4]} 19. Ne3 {[%clk 0:04:08]} 19... Rad8
{[%clk 0:04:16.7]} 20. Bc2 {[%clk 0:04:04.4]} 20... Nd5 {[%clk 0:04:00.5]} 21.
Nhg4 {[%clk 0:03:57.8]} 21... Nxe3 {[%clk 0:03:56.6]} 22. Bxe3 {[%clk
0:03:57.2]} 22... f5 {[%clk 0:03:53.8]} 23. Nh2 {[%clk 0:03:44.1]} 23... Qf7
{[%clk 0:03:48.7]} 24. f4 {[%clk 0:03:12.1]} 24... c4 {[%clk 0:03:40.4]} 25.
fxe5 {[%clk 0:03:05.8]} 25... Nxe5 {[%clk 0:03:30.1]} 26. d4 {[%clk 0:03:05.4]}
26... Qd5 {[%clk 0:02:57.3]} 27. Re2 {[%clk 0:02:56.7]} 27... Nd3 {[%clk
0:02:30.1]} 28. Nf3 {[%clk 0:02:22.4]} 28... Nxb2 {[%clk 0:02:21.6]} 29. Qd2
{[%clk 0:02:11.8]} 29... Qf7 {[%clk 0:02:02.2]} 30. Ne5 {[%clk 0:02:05.7]} 30...
Rxe5 {[%clk 0:01:59.3]} 31. Qc1 {[%clk 0:01:32]} 31... Nd3 {[%clk 0:01:49.5]}
32. Qb1 {[%clk 0:01:02.1]} 32... Re4 {[%clk 0:01:36.5]} 33. a4 {[%clk
0:00:51.6]} 33... Rde8 {[%clk 0:01:32.7]} 34. axb5 {[%clk 0:00:44.8]} 34... axb5
{[%clk 0:01:14.6]} 35. Qxb5 {[%clk 0:00:30.6]} 35... Rxe3 {[%clk 0:01:05]} 36.
Rxe3 {[%clk 0:00:21.6]} 36... Rxe3 {[%clk 0:01:03.3]} 37. Ra7 {[%clk 0:00:20.5]}
37... Re1+ {[%clk 0:00:56.5]} 38. Kh2 {[%clk 0:00:19.3]} 38... Qc7+ {[%clk
0:00:53.5]} 39. g3 {[%clk 0:00:17.5]} 39... Rh1# {[%clk 0:00:52.3]} 0-1

[Event "Live Chess"]
[Site "Chess.com"]
[Date "2023.05.20"]
[Round "-"]
[White "KuriyamaMiraiUA"]
[Black "1600x"]
[Result "1-0"]
[WhiteElo "655"]
[BlackElo "1266"]
[TimeControl "300"]
[EndTime "9:56:05 PDT"]
[Termination "KuriyamaMiraiUA won by resignation"]

1. d4 {[%clk 0:04:57.8]} 1... d5 {[%clk 0:04:56.8]} 2. c4 {[%clk 0:04:57.1]}
2... Bg4 {[%clk 0:04:55]} 3. Nc3 {[%clk 0:04:54.5]} 3... Be6 {[%clk 0:04:53.6]}
4. e3 {[%clk 0:04:51.7]} 4... c6 {[%clk 0:04:52]} 5. Bd3 {[%clk 0:04:46.6]} 5...
Nf6 {[%clk 0:04:46.7]} 6. Nf3 {[%clk 0:04:42.4]} 6... dxc4 {[%clk 0:04:45.3]} 7.
Be2 {[%clk 0:04:33.9]} 7... b5 {[%clk 0:04:40.4]} 8. O-O {[%clk 0:04:23.6]} 8...
b4 {[%clk 0:04:36.3]} 9. Na4 {[%clk 0:04:17]} 9... Qa5 {[%clk 0:04:36.2]} 10.
Nc5 {[%clk 0:04:06.7]} 10... Nfd7 {[%clk 0:04:36.1]} 11. Nxe6 {[%clk 0:04:00.7]}
11... fxe6 {[%clk 0:04:36]} 12. Bd2 {[%clk 0:03:55.3]} 12... c3 {[%clk
0:04:31.5]} 13. bxc3 {[%clk 0:03:53.2]} 13... bxc3 {[%clk 0:04:31.2]} 14. Be1
{[%clk 0:03:46.7]} 14... Nf6 {[%clk 0:04:26.8]} 15. Qb3 {[%clk 0:03:38.4]} 15...
Qd5 {[%clk 0:04:10.6]} 16. Bxc3 {[%clk 0:03:31.7]} 16... Ne4 {[%clk 0:04:06.9]}
17. Bc4 {[%clk 0:03:21.2]} 17... Qd6 {[%clk 0:03:47.3]} 18. Bb4 {[%clk
0:03:17.6]} 18... c5 {[%clk 0:03:39.8]} 19. dxc5 {[%clk 0:03:13.5]} 19... Nxc5
{[%clk 0:03:26.5]} 20. Bb5+ {[%clk 0:03:07.1]} 20... Nc6 {[%clk 0:03:23.2]} 21.
Bxc5 {[%clk 0:02:45.2]} 21... Qxc5 {[%clk 0:03:21.7]} 22. Rac1 {[%clk
0:02:40.4]} 22... Qf5 {[%clk 0:03:19.8]} 23. Bxc6+ {[%clk 0:02:36.2]} 23... Kf7
{[%clk 0:03:15.3]} 24. Bxa8 {[%clk 0:02:34.8]} 24... Qf6 {[%clk 0:03:13.6]} 25.
Qb8 {[%clk 0:02:27.3]} 25... h5 {[%clk 0:02:26.8]} 26. Ne5+ {[%clk 0:02:15.8]}
26... Kg8 {[%clk 0:02:16.4]} 27. Rc8 {[%clk 0:02:04.6]} 27... g6 {[%clk
0:02:13]} 28. Nd7 {[%clk 0:01:54.4]} 28... Qg7 {[%clk 0:01:59.3]} 29. Rxf8+
{[%clk 0:01:51.1]} 29... Kh7 {[%clk 0:01:22.5]} 30. Rxh8+ {[%clk 0:01:36.2]}
30... Qxh8 {[%clk 0:01:20.9]} 31. Qxh8+ {[%clk 0:01:29.7]} 31... Kxh8 {[%clk
0:01:20.8]} 32. Be4 {[%clk 0:01:21]} 32... e5 {[%clk 0:00:59.8]} 33. Bxg6 {[%clk
0:01:17.8]} 33... h4 {[%clk 0:00:55.2]} 34. Nxe5 {[%clk 0:01:15.7]} 34... Kg7
{[%clk 0:00:52.8]} 35. Rc1 {[%clk 0:01:12.7]} 35... Kf8 {[%clk 0:00:50.9]} 36.
Rc8+ {[%clk 0:01:09.6]} 36... Kg7 {[%clk 0:00:49.2]} 37. Rc7 {[%clk 0:01:06.4]}
37... Kf6 {[%clk 0:00:47.7]} 38. Rxa7 {[%clk 0:01:04.7]} 38... Kxe5 {[%clk
0:00:46.7]} 39. Rxe7+ {[%clk 0:01:03.9]} 39... Kf6 {[%clk 0:00:45.9]} 40. Rd7
{[%clk 0:00:59.2]} 40... Kxg6 {[%clk 0:00:44.9]} 41. Rd1 {[%clk 0:00:58]} 41...
Kf6 {[%clk 0:00:43.6]} 42. a3 {[%clk 0:00:56.6]} 42... Kg6 {[%clk 0:00:42.6]}
43. a4 {[%clk 0:00:56.3]} 43... Kg5 {[%clk 0:00:41.3]} 44. a5 {[%clk 0:00:56.1]}
44... h3 {[%clk 0:00:38.1]} 45. a6 {[%clk 0:00:55.9]} 45... hxg2 {[%clk
0:00:36.3]} 46. Kxg2 {[%clk 0:00:55.4]} 46... Kf6 {[%clk 0:00:35.2]} 47. a7
{[%clk 0:00:54.8]} 47... Ke7 {[%clk 0:00:35.1]} 48. a8=Q {[%clk 0:00:53.4]}
48... Kf7 {[%clk 0:00:34]} 49. Qe4 {[%clk 0:00:47.8]} 49... Kg7 {[%clk
0:00:32.6]} 50. Qf3 {[%clk 0:00:46.9]} 50... Kg6 {[%clk 0:00:31.6]} 51. e4
{[%clk 0:00:46.3]} 51... Kg7 {[%clk 0:00:30.6]} 52. e5 {[%clk 0:00:46]} 52...
Kg6 {[%clk 0:00:27.7]} 53. e6 {[%clk 0:00:45.7]} 53... Kg5 {[%clk 0:00:27.4]}
54. e7 {[%clk 0:00:45.3]} 54... Kg6 {[%clk 0:00:26.6]} 55. e8=Q+ {[%clk
0:00:41.8]} 1-0

[Event "Live Chess"]
[Site "Chess.com"]
[Date "2023.05.20"]
[Round "-"]
[White "SirEntrails"]
[Black "Zeraora719"]
[Result "1-0"]
[WhiteElo "539"]
[BlackElo "808"]
[TimeControl "300"]
[EndTime "9:56:07 PDT"]
[Termination "SirEntrails won by checkmate"]

1. e4 {[%clk 0:04:54.7]} 1... e5 {[%clk 0:04:56.9]} 2. Nf3 {[%clk 0:04:53.9]}
2... Nc6 {[%clk 0:04:54.9]} 3. Bc4 {[%clk 0:04:51.7]} 3... Bc5 {[%clk
0:04:46.5]} 4. d3 {[%clk 0:04:47.8]} 4... d6 {[%clk 0:04:43.4]} 5. Ng5 {[%clk
0:04:45.5]} 5... h6 {[%clk 0:04:26.5]} 6. Nxf7 {[%clk 0:04:43.5]} 6... Qe7
{[%clk 0:03:42.2]} 7. Nxh8 {[%clk 0:04:37.8]} 7... Nf6 {[%clk 0:03:40.4]} 8. Nf7
{[%clk 0:04:33.6]} 8... Ng4 {[%clk 0:03:35.2]} 9. O-O {[%clk 0:04:29.3]} 9...
Nxf2 {[%clk 0:03:26.6]} 10. Qh5 {[%clk 0:04:21.8]} 10... Bg4 {[%clk 0:03:12.8]}
11. Qg6 {[%clk 0:04:12.3]} 11... Qh4 {[%clk 0:02:54.7]} 12. Nxe5+ {[%clk
0:03:52.2]} 12... Kf8 {[%clk 0:02:51.3]} 13. Nxg4 {[%clk 0:03:51.1]} 13... Ke7
{[%clk 0:02:11.8]} 14. Nxf2 {[%clk 0:03:41]} 14... Rf8 {[%clk 0:02:01.7]} 15.
Qxg7+ {[%clk 0:03:36.1]} 15... Ke8 {[%clk 0:01:57.6]} 16. g3 {[%clk 0:03:08.2]}
16... Qh3 {[%clk 0:01:47]} 17. Bxh6 {[%clk 0:02:58.3]} 17... Bxf2+ {[%clk
0:01:43.3]} 18. Rxf2 {[%clk 0:02:53.4]} 18... Rxf2 {[%clk 0:01:35]} 19. Kxf2
{[%clk 0:02:52]} 19... Qxh2+ {[%clk 0:01:31.1]} 20. Kf3 {[%clk 0:02:46.4]} 20...
Qh5+ {[%clk 0:01:26.3]} 21. g4 {[%clk 0:02:41.6]} 21... Qh3+ {[%clk 0:01:23.5]}
22. Kf2 {[%clk 0:02:36.4]} 22... Nd4 {[%clk 0:01:10]} 23. Qf8+ {[%clk
0:02:31.2]} 23... Kd7 {[%clk 0:01:07.9]} 24. Bg5 {[%clk 0:02:20.3]} 24... Nxc2
{[%clk 0:00:47.9]} 25. Qe7+ {[%clk 0:02:15]} 25... Kc6 {[%clk 0:00:40.9]} 26.
Bd5+ {[%clk 0:02:09.6]} 26... Kc5 {[%clk 0:00:38]} 27. Qxc7+ {[%clk 0:01:51]}
27... Kb5 {[%clk 0:00:27.2]} 28. Qc4+ {[%clk 0:01:43.7]} 28... Kb6 {[%clk
0:00:23]} 29. Bd8# {[%clk 0:01:39.6]} 1-0

[Event "Live Chess"]
[Site "Chess.com"]
[Date "2023.05.20"]
[Round "-"]
[White "hello505050"]
[Black "alanmike75"]
[Result "0-1"]
[WhiteElo "1074"]
[BlackElo "1483"]
[TimeControl "300"]
[EndTime "9:56:10 PDT"]
[Termination "alanmike75 won by checkmate"]

1. e4 {[%clk 0:04:58.6]} 1... e5 {[%clk 0:04:58.2]} 2. Nf3 {[%clk 0:04:57.7]}
2... Nc6 {[%clk 0:04:56.7]} 3. Bc4 {[%clk 0:04:56.4]} 3... Be7 {[%clk
0:04:55.3]} 4. Nc3 {[%clk 0:04:52.8]} 4... Nf6 {[%clk 0:04:53.9]} 5. Ng5 {[%clk
0:04:51.4]} 5... O-O {[%clk 0:04:51.1]} 6. d3 {[%clk 0:04:47.1]} 6... d6 {[%clk
0:04:49.1]} 7. O-O {[%clk 0:04:42]} 7... h6 {[%clk 0:04:47.6]} 8. Nf3 {[%clk
0:04:35.7]} 8... Bg4 {[%clk 0:04:45.9]} 9. h3 {[%clk 0:04:34.4]} 9... Bxf3
{[%clk 0:04:44.6]} 10. Qxf3 {[%clk 0:04:34.3]} 10... Nd4 {[%clk 0:04:42.1]} 11.
Qd1 {[%clk 0:04:29.8]} 11... c6 {[%clk 0:04:40.5]} 12. Be3 {[%clk 0:04:25.8]}
12... b5 {[%clk 0:04:38.4]} 13. Bb3 {[%clk 0:04:21.6]} 13... a5 {[%clk 0:04:31]}
14. a4 {[%clk 0:04:14.8]} 14... Nxb3 {[%clk 0:04:28.1]} 15. cxb3 {[%clk
0:04:11.7]} 15... b4 {[%clk 0:04:26.9]} 16. Ne2 {[%clk 0:04:10]} 16... c5 {[%clk
0:04:23.9]} 17. Ng3 {[%clk 0:04:07.1]} 17... Qd7 {[%clk 0:04:10.3]} 18. Nf5
{[%clk 0:04:04.5]} 18... Bd8 {[%clk 0:04:07.4]} 19. Qf3 {[%clk 0:03:57.9]} 19...
Kh7 {[%clk 0:03:43.6]} 20. g4 {[%clk 0:03:37.5]} 20... Ng8 {[%clk 0:03:41.3]}
21. Bd2 {[%clk 0:03:27.6]} 21... g6 {[%clk 0:03:38.6]} 22. Bxh6 {[%clk
0:03:17.7]} 22... Nxh6 {[%clk 0:03:34.9]} 23. g5 {[%clk 0:03:15.7]} 23... Nxf5
{[%clk 0:03:23.4]} 24. exf5 {[%clk 0:03:13.6]} 24... Bxg5 {[%clk 0:03:21.6]} 25.
h4 {[%clk 0:03:03.2]} 25... Bxh4 {[%clk 0:03:11.2]} 26. Qh3 {[%clk 0:03:02.4]}
26... g5 {[%clk 0:03:06.9]} 27. Kh2 {[%clk 0:02:57]} 27... Kg7 {[%clk 0:03:02]}
28. f6+ {[%clk 0:02:54.3]} 28... Kxf6 {[%clk 0:02:53.2]} 29. Qxh4 {[%clk
0:02:54.2]} 29... Rh8 {[%clk 0:02:51.2]} 30. Qxh8+ {[%clk 0:02:49.4]} 30...
Rxh8+ {[%clk 0:02:49.4]} 31. Kg3 {[%clk 0:02:48.2]} 31... Qh3# {[%clk
0:02:46.8]} 0-1

[Event "Live Chess"]
[Site "Chess.com"]
[Date "2023.05.20"]
[Round "-"]
[White "RoaringKnights"]
[Black "friarnator"]
[Result "0-1"]
[WhiteElo "943"]
[BlackElo "1979"]
[TimeControl "300"]
[EndTime "9:56:14 PDT"]
[Termination "friarnator won by checkmate"]

1. d4 {[%clk 0:04:55.6]} 1... Nf6 {[%clk 0:04:58.9]} 2. Nf3 {[%clk 0:04:53.6]}
2... g6 {[%clk 0:04:58.1]} 3. Bf4 {[%clk 0:04:52.4]} 3... Bg7 {[%clk 0:04:57.6]}
4. e3 {[%clk 0:04:51.5]} 4... d6 {[%clk 0:04:57.2]} 5. c3 {[%clk 0:04:49.3]}
5... O-O {[%clk 0:04:56.9]} 6. Nbd2 {[%clk 0:04:48.5]} 6... h6 {[%clk
0:04:55.9]} 7. Bd3 {[%clk 0:04:46.9]} 7... Nh5 {[%clk 0:04:55]} 8. Bg3 {[%clk
0:04:44.8]} 8... Nxg3 {[%clk 0:04:54.1]} 9. hxg3 {[%clk 0:04:44.1]} 9... e5
{[%clk 0:04:54]} 10. dxe5 {[%clk 0:04:41.7]} 10... dxe5 {[%clk 0:04:53.9]} 11.
Qc2 {[%clk 0:04:37.9]} 11... f5 {[%clk 0:04:51.2]} 12. e4 {[%clk 0:04:35.3]}
12... Be6 {[%clk 0:04:43.7]} 13. exf5 {[%clk 0:04:33.7]} 13... gxf5 {[%clk
0:04:42.5]} 14. g4 {[%clk 0:04:30.2]} 14... e4 {[%clk 0:04:40.3]} 15. Be2 {[%clk
0:04:09.9]} 15... exf3 {[%clk 0:04:37.1]} 16. Bxf3 {[%clk 0:04:09.1]} 16... c6
{[%clk 0:03:58.9]} 17. gxf5 {[%clk 0:04:02.1]} 17... Bxf5 {[%clk 0:03:53.3]} 18.
Qb3+ {[%clk 0:03:55.4]} 18... Rf7 {[%clk 0:03:52]} 19. Bh5 {[%clk 0:03:49.9]}
19... Qe7+ {[%clk 0:03:40.6]} 20. Kd1 {[%clk 0:03:43]} 20... Na6 {[%clk
0:03:34.8]} 21. Bxf7+ {[%clk 0:03:39.2]} 21... Qxf7 {[%clk 0:03:34.7]} 22. Qxf7+
{[%clk 0:03:38]} 22... Kxf7 {[%clk 0:03:33.2]} 23. Re1 {[%clk 0:03:36.6]} 23...
Rd8 {[%clk 0:03:30.7]} 24. Kc1 {[%clk 0:03:34.9]} 24... h5 {[%clk 0:03:28.3]}
25. b3 {[%clk 0:03:23]} 25... Bxc3 {[%clk 0:03:25.4]} 26. Rb1 {[%clk 0:03:06.4]}
26... Bxd2+ {[%clk 0:03:23.9]} 27. Kb2 {[%clk 0:03:03.8]} 27... Bxb1 {[%clk
0:03:18.4]} 28. Rxb1 {[%clk 0:03:03.2]} 28... Nb4 {[%clk 0:03:16.1]} 29. Ka3
{[%clk 0:02:45.5]} 29... a5 {[%clk 0:03:12.3]} 30. Rd1 {[%clk 0:02:40.8]} 30...
Nc2+ {[%clk 0:03:08.1]} 31. Kb2 {[%clk 0:02:38.9]} 31... Nb4 {[%clk 0:02:59.8]}
32. a3 {[%clk 0:02:35.3]} 32... Bc3+ {[%clk 0:02:58.4]} 33. Kxc3 {[%clk
0:02:31.3]} 33... Rxd1 {[%clk 0:02:56.9]} 34. axb4 {[%clk 0:02:29.5]} 34...
axb4+ {[%clk 0:02:56.8]} 35. Kxb4 {[%clk 0:02:27.2]} 35... Rd2 {[%clk 0:02:56]}
36. Ka4 {[%clk 0:02:26]} 36... Rxf2 {[%clk 0:02:55.4]} 37. b4 {[%clk 0:02:24.9]}
37... Rxg2 {[%clk 0:02:54.4]} 38. Ka5 {[%clk 0:02:23.5]} 38... Rg5+ {[%clk
0:02:53]} 39. Kb6 {[%clk 0:02:22.5]} 39... Rb5+ {[%clk 0:02:52.9]} 40. Kc7
{[%clk 0:02:20.2]} 40... h4 {[%clk 0:02:52.8]} 41. Kd6 {[%clk 0:02:18.6]} 41...
h3 {[%clk 0:02:52.7]} 42. Kd7 {[%clk 0:02:17.8]} 42... h2 {[%clk 0:02:52.6]} 43.
Kc7 {[%clk 0:02:17.3]} 43... h1=Q {[%clk 0:02:52.5]} 44. Kd6 {[%clk 0:02:16.8]}
44... Qd5+ {[%clk 0:02:47.3]} 45. Kc7 {[%clk 0:02:15.1]} 45... Qe5+ {[%clk
0:02:44.7]} 46. Kc8 {[%clk 0:02:14.3]} 46... Rd5 {[%clk 0:02:36.1]} 47. Kxb7
{[%clk 0:02:12.6]} 47... c5 {[%clk 0:02:33.7]} 48. bxc5 {[%clk 0:02:10.3]} 48...
Rxc5 {[%clk 0:02:32.4]} 49. Kb6 {[%clk 0:02:08.4]} 49... Qd6+ {[%clk 0:02:31.5]}
50. Kb7 {[%clk 0:02:07.3]} 50... Rc7+ {[%clk 0:02:31.4]} 51. Kb8 {[%clk
0:02:05.1]} 51... Qd8# {[%clk 0:02:31.3]} 0-1